[Event "Titled Tuesday Blitz July 20 2021"]
[White "Oliveira, Silvio Eduardo"]
[Black "Porter, Ryan W"]
[WhiteFideId "2111560"]
[BlackFideId "2011239"]
[WhiteElo "2302"]
[BlackElo "2419"]
[Result "1-0"]
[Round "07"]
[TimeControl "180+1"]
[Date "2021.07.21"]
[WhiteClock "0:00:46"]
[BlackClock "0:00:01"]

1. e4 {[%clk 0:03:00]}  d6 {[%clk 0:03:00]} 2. d4 {[%clk 0:03:00]}  Nf6 {[%clk 0:03:00]} 3. Nc3 {[%clk 0:03:01]}  g6 {[%clk 0:03:00]} 4. Bf4 {[%clk 0:03:01]}  a6 {[%clk 0:02:59]} 5. h4 {[%clk 0:02:47]}  h5 {[%clk 0:02:44]} 6. e5 {[%clk 0:02:43]}  Ng4 {[%clk 0:02:17]} 7. Nf3 {[%clk 0:02:42]}  d5 {[%clk 0:02:01]} 8. Ng5 {[%clk 0:02:27]}  Bf5 {[%clk 0:01:47]} 9. e6 {[%clk 0:02:02]}  fxe6 {[%clk 0:01:29]} 10. f3 {[%clk 0:02:02]}  Nh6 {[%clk 0:01:24]} 11. Be5 {[%clk 0:01:37]}  Rg8 {[%clk 0:01:21]} 12. Bd3 {[%clk 0:01:35]}  Qd7 {[%clk 0:01:18]} 13. Qe2 {[%clk 0:01:28]}  Nf7 {[%clk 0:01:08]} 14. Nxf7 {[%clk 0:01:22]}  Kxf7 {[%clk 0:01:08]} 15. g4 {[%clk 0:01:22]}  Bxd3 {[%clk 0:01:03]} 16. Qxd3 {[%clk 0:01:22]}  Nc6 {[%clk 0:00:56]} 17. gxh5 {[%clk 0:01:22]}  Nxe5 {[%clk 0:00:55]} 18. dxe5 {[%clk 0:01:23]}  Bh6 {[%clk 0:00:45]} 19. Rg1 {[%clk 0:01:23]}  Bf4 {[%clk 0:00:19]} 20. Rxg6 {[%clk 0:01:13]}  Bxe5 {[%clk 0:00:16]} 21. O-O-O {[%clk 0:01:13]}  Qd6 {[%clk 0:00:09]} 22. Rdg1 {[%clk 0:01:12]}  Bxc3 {[%clk 0:00:05]} 23. Qxc3 {[%clk 0:01:01]}  Qf4+ {[%clk 0:00:05]} 24. Kb1 {[%clk 0:01:01]}  d4 {[%clk 0:00:01]} 25. Qc4 {[%clk 0:00:56]}  Qf5 {[%clk 0:00:01]} 26. R1g5 {[%clk 0:00:46]} 1-0


[Site "https://www.chess.com"]

[Event "Titled Tuesday Blitz July 20 2021"]
[White "Omk124"]
[Black "Sihite, Chelsie Monica Ignesias"]
[BlackFideId "7101198"]
[WhiteElo "2560"]
[BlackElo "2224"]
[Result "1-0"]
[Round "07"]
[TimeControl "180+1"]
[Date "2021.07.21"]
[WhiteClock "0:02:49"]
[BlackClock "0:02:48"]

1. e4 {[%clk 0:03:00]}  c5 {[%clk 0:02:59]} 2. Nf3 {[%clk 0:03:00]}  Nc6 {[%clk 0:02:58]} 3. d4 {[%clk 0:03:00]}  cxd4 {[%clk 0:02:58]} 4. Nxd4 {[%clk 0:03:01]}  Nf6 {[%clk 0:02:58]} 5. Nc3 {[%clk 0:03:01]}  e5 {[%clk 0:02:57]} 6. Ndb5 {[%clk 0:03:01]}  a6 {[%clk 0:02:57]} 7. Nd6+ {[%clk 0:03:01]}  Bxd6 {[%clk 0:02:57]} 8. Qxd6 {[%clk 0:03:02]}  Qe7 {[%clk 0:02:58]} 9. Qd1 {[%clk 0:03:01]}  O-O {[%clk 0:02:58]} 10. Bg5 {[%clk 0:03:00]}  h6 {[%clk 0:02:58]} 11. Nd5 {[%clk 0:02:55]}  Qe6 {[%clk 0:02:58]} 12. Bxf6 {[%clk 0:02:54]}  gxf6 {[%clk 0:02:59]} 13. Nc7 {[%clk 0:02:54]}  Qe7 {[%clk 0:02:55]} 14. Nxa8 {[%clk 0:02:54]}  Qb4+ {[%clk 0:02:50]} 15. c3 {[%clk 0:02:52]}  Qxb2 {[%clk 0:02:48]} 16. Qc1 {[%clk 0:02:49]} 1-0


[Site "https://www.chess.com"]

[Event "Titled Tuesday Blitz July 20 2021"]
[White "Orantes Taboada, Francisco"]
[Black "Rorrer, Grayson"]
[WhiteFideId "22274758"]
[BlackFideId "30944996"]
[WhiteElo "2073"]
[BlackElo "2122"]
[Result "0-1"]
[Round "07"]
[TimeControl "180+1"]
[Date "2021.07.21"]
[WhiteClock "0:00:24"]
[BlackClock "0:00:59"]

1. Nf3 {[%clk 0:02:51]}  Nf6 {[%clk 0:02:58]} 2. g3 {[%clk 0:02:51]}  d5 {[%clk 0:02:58]} 3. Bg2 {[%clk 0:02:51]}  c6 {[%clk 0:02:58]} 4. O-O {[%clk 0:02:52]}  Bg4 {[%clk 0:02:56]} 5. d4 {[%clk 0:02:53]}  e6 {[%clk 0:02:55]} 6. c4 {[%clk 0:02:52]}  Be7 {[%clk 0:02:53]} 7. Qb3 {[%clk 0:02:52]}  Qc8 {[%clk 0:02:46]} 8. Nc3 {[%clk 0:02:47]}  O-O {[%clk 0:02:45]} 9. Rd1 {[%clk 0:02:45]}  Nbd7 {[%clk 0:02:44]} 10. Bf4 {[%clk 0:02:43]}  Nb6 {[%clk 0:02:35]} 11. cxd5 {[%clk 0:02:43]}  exd5 {[%clk 0:02:34]} 12. Rac1 {[%clk 0:02:40]}  Nc4 {[%clk 0:02:26]} 13. Ne5 {[%clk 0:02:34]}  Nxe5 {[%clk 0:02:19]} 14. Bxe5 {[%clk 0:02:34]}  Bh3 {[%clk 0:02:07]} 15. Nxd5 {[%clk 0:02:30]}  Nxd5 {[%clk 0:01:53]} 16. Bxd5 {[%clk 0:02:28]}  Bg4 {[%clk 0:01:54]} 17. Bf3 {[%clk 0:02:25]}  Bxf3 {[%clk 0:01:53]} 18. Qxf3 {[%clk 0:02:26]}  Qe6 {[%clk 0:01:53]} 19. b3 {[%clk 0:02:23]}  Rad8 {[%clk 0:01:52]} 20. Rd3 {[%clk 0:02:21]}  Rd7 {[%clk 0:01:46]} 21. e4 {[%clk 0:02:10]}  Rfd8 {[%clk 0:01:45]} 22. Rcd1 {[%clk 0:02:10]}  c5 {[%clk 0:01:36]} 23. Qe3 {[%clk 0:01:15]}  f6 {[%clk 0:01:29]} 24. Bf4 {[%clk 0:01:15]}  g5 {[%clk 0:01:23]} 25. d5 {[%clk 0:00:53]}  Qg4 {[%clk 0:01:12]} 26. d6 {[%clk 0:00:30]}  gxf4 {[%clk 0:00:59]} 27. dxe7 {[%clk 0:00:29]}  Qxd1+ {[%clk 0:00:58]} 28. Rxd1 {[%clk 0:00:27]}  Rxd1+ {[%clk 0:00:58]} 29. Kg2 {[%clk 0:00:24]}  fxe3 {[%clk 0:00:59]} 30. exd8=Q+ {[%clk 0:00:24]}  Rxd8 {[%clk 0:00:59]} 0-1


[Site "https://www.chess.com"]

[Event "Titled Tuesday Blitz July 20 2021"]
[White "Perez Rodriguez, Luis Manuel"]
[Black "Jarovinsky, Alexey"]
[WhiteFideId "3503364"]
[BlackFideId "14115131"]
[WhiteElo "2429"]
[BlackElo "2446"]
[Result "0-1"]
[Round "07"]
[TimeControl "180+1"]
[Date "2021.07.20"]
[WhiteClock "0:00:12"]
[BlackClock "0:00:16"]

1. e4 {[%clk 0:02:26]}  Nc6 {[%clk 0:03:00]} 2. Nf3 {[%clk 0:02:01]}  d6 {[%clk 0:02:59]} 3. d4 {[%clk 0:01:58]}  Nf6 {[%clk 0:02:57]} 4. Nc3 {[%clk 0:01:57]}  Bg4 {[%clk 0:02:56]} 5. d5 {[%clk 0:01:57]}  Nb8 {[%clk 0:02:54]} 6. Be2 {[%clk 0:01:56]}  g6 {[%clk 0:02:48]} 7. Nd4 {[%clk 0:01:54]}  Bxe2 {[%clk 0:02:48]} 8. Qxe2 {[%clk 0:01:55]}  Bg7 {[%clk 0:02:47]} 9. Be3 {[%clk 0:01:51]}  O-O {[%clk 0:02:43]} 10. O-O {[%clk 0:01:52]}  c5 {[%clk 0:02:27]} 11. Nf3 {[%clk 0:01:48]}  Nbd7 {[%clk 0:02:22]} 12. h3 {[%clk 0:01:46]}  a6 {[%clk 0:02:17]} 13. a4 {[%clk 0:01:47]}  Ne8 {[%clk 0:02:04]} 14. Nd2 {[%clk 0:01:44]}  Nc7 {[%clk 0:02:02]} 15. f4 {[%clk 0:01:40]}  b5 {[%clk 0:01:51]} 16. axb5 {[%clk 0:01:38]}  axb5 {[%clk 0:01:51]} 17. Nxb5 {[%clk 0:01:29]}  Nxb5 {[%clk 0:01:43]} 18. Qxb5 {[%clk 0:01:30]}  Rb8 {[%clk 0:01:40]} 19. Qd3 {[%clk 0:01:29]}  Bxb2 {[%clk 0:01:37]} 20. Rae1 {[%clk 0:01:20]}  Bg7 {[%clk 0:01:34]} 21. Nf3 {[%clk 0:00:57]}  Qa5 {[%clk 0:01:29]} 22. Kh1 {[%clk 0:00:53]}  Qc3 {[%clk 0:01:26]} 23. Qe2 {[%clk 0:00:52]}  Rb2 {[%clk 0:01:19]} 24. Rf2 {[%clk 0:00:51]}  Ra8 {[%clk 0:01:14]} 25. f5 {[%clk 0:00:44]}  Raa2 {[%clk 0:01:10]} 26. fxg6 {[%clk 0:00:44]}  hxg6 {[%clk 0:01:05]} 27. Rc1 {[%clk 0:00:44]}  Nf6 {[%clk 0:00:36]} 28. Ng5 {[%clk 0:00:42]}  Ra3 {[%clk 0:00:29]} 29. Bf4 {[%clk 0:00:29]}  Qd4 {[%clk 0:00:20]} 30. Nf3 {[%clk 0:00:21]}  Qxe4 {[%clk 0:00:19]} 31. Ng5 {[%clk 0:00:18]}  Qxe2 {[%clk 0:00:18]} 32. Rxe2 {[%clk 0:00:19]}  Nxd5 {[%clk 0:00:18]} 33. Bh2 {[%clk 0:00:15]}  Bh6 {[%clk 0:00:17]} 34. Rd1 {[%clk 0:00:12]}  Nc3 {[%clk 0:00:16]} 0-1


[Site "https://www.chess.com"]

[Event "Titled Tuesday Blitz July 20 2021"]
[White "Petriashvili, Nikoloz"]
[Black "GrafLermontov"]
[WhiteFideId "13611216"]
[WhiteElo "2430"]
[BlackElo "2558"]
[Result "1-0"]
[Round "07"]
[TimeControl "180+1"]
[Date "2021.07.20"]
[WhiteClock "0:02:05"]
[BlackClock "0:00:35"]

1. e4 {[%clk 0:03:00]}  c5 {[%clk 0:02:59]} 2. Nf3 {[%clk 0:03:00]}  e6 {[%clk 0:03:00]} 3. d4 {[%clk 0:03:00]}  cxd4 {[%clk 0:03:01]} 4. Nxd4 {[%clk 0:03:01]}  Nc6 {[%clk 0:03:01]} 5. g3 {[%clk 0:03:00]}  Qc7 {[%clk 0:03:01]} 6. Bg2 {[%clk 0:03:00]}  a6 {[%clk 0:03:01]} 7. O-O {[%clk 0:03:00]}  h5 {[%clk 0:03:02]} 8. Nc3 {[%clk 0:03:00]}  h4 {[%clk 0:03:02]} 9. Nxc6 {[%clk 0:02:51]}  bxc6 {[%clk 0:03:01]} 10. Bf4 {[%clk 0:02:51]}  Qb6 {[%clk 0:03:00]} 11. b3 {[%clk 0:02:49]}  hxg3 {[%clk 0:02:56]} 12. hxg3 {[%clk 0:02:50]}  Nf6 {[%clk 0:02:53]} 13. Na4 {[%clk 0:02:50]}  Qd8 {[%clk 0:02:48]} 14. c4 {[%clk 0:02:48]}  Nh5 {[%clk 0:02:31]} 15. Be3 {[%clk 0:02:47]}  e5 {[%clk 0:02:24]} 16. c5 {[%clk 0:02:45]}  Be7 {[%clk 0:02:04]} 17. Bf3 {[%clk 0:02:44]}  g6 {[%clk 0:02:00]} 18. Nb6 {[%clk 0:02:42]}  Rb8 {[%clk 0:01:59]} 19. Nc4 {[%clk 0:02:43]}  a5 {[%clk 0:01:51]} 20. Nd6+ {[%clk 0:02:37]}  Kf8 {[%clk 0:01:45]} 21. Kg2 {[%clk 0:02:36]}  Bg5 {[%clk 0:01:35]} 22. Bxh5 {[%clk 0:02:26]}  Rxh5 {[%clk 0:01:24]} 23. Rh1 {[%clk 0:02:26]}  Bxe3 {[%clk 0:01:15]} 24. Rxh5 {[%clk 0:02:26]}  gxh5 {[%clk 0:01:15]} 25. Qxh5 {[%clk 0:02:26]}  Qf6 {[%clk 0:00:46]} 26. fxe3 {[%clk 0:02:17]}  Ba6 {[%clk 0:00:46]} 27. Rh1 {[%clk 0:02:13]}  Ke7 {[%clk 0:00:44]} 28. Nf5+ {[%clk 0:02:11]}  Ke6 {[%clk 0:00:43]} 29. Qd1 {[%clk 0:02:06]}  d5 {[%clk 0:00:37]} 30. Rh6 {[%clk 0:02:05]}  Qxh6 {[%clk 0:00:36]} 31. Nxh6 {[%clk 0:02:06]}  d4 {[%clk 0:00:34]} 32. exd4 {[%clk 0:02:06]}  Rd8 {[%clk 0:00:35]} 33. Qg4+ {[%clk 0:02:05]} 1-0


[Site "https://www.chess.com"]

[Event "Titled Tuesday Blitz July 20 2021"]
[White "Plotnikov, Pavel"]
[Black "Hryshchenko, Kamila"]
[WhiteFideId "4170342"]
[BlackFideId "14147491"]
[WhiteElo "2298"]
[BlackElo "1966"]
[Result "1-0"]
[Round "07"]
[TimeControl "180+1"]
[Date "2021.07.21"]
[WhiteClock "0:01:54"]
[BlackClock "0:01:44"]

1. e4 {[%clk 0:03:00]}  d5 {[%clk 0:02:56]} 2. exd5 {[%clk 0:02:53]}  Qxd5 {[%clk 0:02:57]} 3. Nc3 {[%clk 0:02:50]}  Qe5+ {[%clk 0:02:57]} 4. Be2 {[%clk 0:02:43]}  Bg4 {[%clk 0:02:56]} 5. d4 {[%clk 0:02:43]}  Bxe2 {[%clk 0:02:54]} 6. Ngxe2 {[%clk 0:02:40]}  Qa5 {[%clk 0:02:54]} 7. O-O {[%clk 0:02:40]}  Na6 {[%clk 0:02:51]} 8. Bf4 {[%clk 0:02:39]}  Nf6 {[%clk 0:02:40]} 9. a3 {[%clk 0:02:35]}  c6 {[%clk 0:02:37]} 10. Nb1 {[%clk 0:02:24]}  e6 {[%clk 0:02:28]} 11. c4 {[%clk 0:02:22]}  Be7 {[%clk 0:02:25]} 12. b4 {[%clk 0:02:21]}  Bxb4 {[%clk 0:02:19]} 13. Qb3 {[%clk 0:02:17]}  c5 {[%clk 0:02:05]} 14. axb4 {[%clk 0:02:14]}  Qxa1 {[%clk 0:02:04]} 15. Nbc3 {[%clk 0:02:01]}  Qxf1+ {[%clk 0:01:57]} 16. Kxf1 {[%clk 0:02:01]}  Nxb4 {[%clk 0:01:55]} 17. dxc5 {[%clk 0:01:58]}  a5 {[%clk 0:01:54]} 18. Bd6 {[%clk 0:01:58]}  Nd7 {[%clk 0:01:47]} 19. Qa4 {[%clk 0:01:56]}  Nc6 {[%clk 0:01:44]} 20. Nb5 {[%clk 0:01:54]} 1-0


[Site "https://www.chess.com"]

[Event "Titled Tuesday Blitz July 20 2021"]
[White "Preotu, Razvan"]
[Black "Howell, David W L"]
[WhiteFideId "2613280"]
[BlackFideId "410608"]
[WhiteElo "2407"]
[BlackElo "2643"]
[Result "0-1"]
[Round "07"]
[TimeControl "180+1"]
[Date "2021.07.20"]
[WhiteClock "0:00:02"]
[BlackClock "0:00:06"]

1. e4 {[%clk 0:03:00]}  e6 {[%clk 0:03:00]} 2. d4 {[%clk 0:03:00]}  d5 {[%clk 0:03:00]} 3. Nc3 {[%clk 0:03:01]}  h6 {[%clk 0:02:49]} 4. Nf3 {[%clk 0:02:56]}  Nf6 {[%clk 0:02:42]} 5. Bd3 {[%clk 0:02:54]}  c5 {[%clk 0:02:37]} 6. exd5 {[%clk 0:02:43]}  exd5 {[%clk 0:02:32]} 7. dxc5 {[%clk 0:02:09]}  Bxc5 {[%clk 0:02:33]} 8. O-O {[%clk 0:02:09]}  O-O {[%clk 0:02:33]} 9. h3 {[%clk 0:01:24]}  Nc6 {[%clk 0:02:31]} 10. Ne2 {[%clk 0:01:25]}  Re8 {[%clk 0:02:25]} 11. c3 {[%clk 0:01:23]}  Ne4 {[%clk 0:02:24]} 12. Ned4 {[%clk 0:01:22]}  Qf6 {[%clk 0:02:19]} 13. Be3 {[%clk 0:01:21]}  Bb6 {[%clk 0:02:11]} 14. Bb5 {[%clk 0:00:45]}  Bd7 {[%clk 0:02:05]} 15. Nc2 {[%clk 0:00:34]}  Bc7 {[%clk 0:01:56]} 16. Qxd5 {[%clk 0:00:29]}  Rad8 {[%clk 0:01:53]} 17. Qh5 {[%clk 0:00:28]}  Bf5 {[%clk 0:01:37]} 18. Qh4 {[%clk 0:00:24]}  g5 {[%clk 0:01:11]} 19. Qh5 {[%clk 0:00:24]}  Qg7 {[%clk 0:00:59]} 20. Nfd4 {[%clk 0:00:23]}  Bg6 {[%clk 0:00:55]} 21. Qe2 {[%clk 0:00:17]}  Qe5 {[%clk 0:00:42]} 22. f4 {[%clk 0:00:16]}  Qd6 {[%clk 0:00:37]} 23. Qf3 {[%clk 0:00:14]}  Ne5 {[%clk 0:00:21]} 24. fxe5 {[%clk 0:00:14]}  Qxe5 {[%clk 0:00:22]} 25. g3 {[%clk 0:00:13]}  Nxg3 {[%clk 0:00:22]} 26. Rfe1 {[%clk 0:00:08]}  Be4 {[%clk 0:00:19]} 27. Qg4 {[%clk 0:00:06]}  Kg7 {[%clk 0:00:03]} 28. Bxe8 {[%clk 0:00:05]}  Rxe8 {[%clk 0:00:04]} 29. Bf4 {[%clk 0:00:03]}  Qxf4 {[%clk 0:00:03]} 30. Qxf4 {[%clk 0:00:02]}  Bxf4 {[%clk 0:00:04]} 31. Nb4 {[%clk 0:00:02]}  Kg6 {[%clk 0:00:04]} 32. Kf2 {[%clk 0:00:02]}  f5 {[%clk 0:00:03]} 33. Ne2 {[%clk 0:00:02]}  Nxe2 {[%clk 0:00:02]} 34. Rxe2 {[%clk 0:00:03]}  Bc7 {[%clk 0:00:03]} 35. Nc2 {[%clk 0:00:02]}  Bb6+ {[%clk 0:00:03]} 36. Ke1 {[%clk 0:00:02]}  Rd8 {[%clk 0:00:03]} 37. Nd4 {[%clk 0:00:02]}  Bxd4 {[%clk 0:00:03]} 38. cxd4 {[%clk 0:00:03]}  Rxd4 {[%clk 0:00:03]} 39. Rd2 {[%clk 0:00:03]}  Rc4 {[%clk 0:00:03]} 40. Kf2 {[%clk 0:00:03]}  Kh5 {[%clk 0:00:03]} 41. Re1 {[%clk 0:00:03]}  Rc6 {[%clk 0:00:03]} 42. Re3 {[%clk 0:00:03]}  Kh4 {[%clk 0:00:03]} 43. Rb3 {[%clk 0:00:02]}  b6 {[%clk 0:00:02]} 44. Ra3 {[%clk 0:00:02]}  a5 {[%clk 0:00:02]} 45. Rb3 {[%clk 0:00:02]}  h5 {[%clk 0:00:02]} 46. a4 {[%clk 0:00:02]}  g4 {[%clk 0:00:03]} 47. hxg4 {[%clk 0:00:03]}  hxg4 {[%clk 0:00:04]} 48. Ke3 {[%clk 0:00:03]}  Kg3 {[%clk 0:00:04]} 49. Kd4+ {[%clk 0:00:03]}  Kf4 {[%clk 0:00:04]} 50. Rf2+ {[%clk 0:00:03]}  Kg5 {[%clk 0:00:04]} 51. Rb5 {[%clk 0:00:03]}  Re6 {[%clk 0:00:04]} 52. Re5 {[%clk 0:00:02]}  Rd6+ {[%clk 0:00:04]} 53. Ke3 {[%clk 0:00:02]}  g3 {[%clk 0:00:04]} 54. Rf1 {[%clk 0:00:02]}  Rd3+ {[%clk 0:00:04]} 55. Ke2 {[%clk 0:00:02]}  Kg4 {[%clk 0:00:05]} 56. Rg1 {[%clk 0:00:02]}  Rb3 {[%clk 0:00:05]} 57. Re8 {[%clk 0:00:02]}  Rxb2+ {[%clk 0:00:05]} 58. Ke3 {[%clk 0:00:03]}  Rb3+ {[%clk 0:00:06]} 59. Ke2 {[%clk 0:00:04]}  Kf4 {[%clk 0:00:06]} 60. Rg8 {[%clk 0:00:04]}  g2 {[%clk 0:00:06]} 61. Kd2 {[%clk 0:00:04]}  Rb2+ {[%clk 0:00:06]} 62. Kc3 {[%clk 0:00:05]}  Rf2 {[%clk 0:00:07]} 63. Kd4 {[%clk 0:00:05]}  Kf3 {[%clk 0:00:07]} 64. Ke5 {[%clk 0:00:04]}  Re2 {[%clk 0:00:07]} 65. Kd4 {[%clk 0:00:04]}  Ra2 {[%clk 0:00:06]} 66. Re1 {[%clk 0:00:03]}  Kf2 {[%clk 0:00:06]} 67. Rc1 {[%clk 0:00:03]}  Rxa4+ {[%clk 0:00:05]} 68. Ke5 {[%clk 0:00:04]}  Ra2 {[%clk 0:00:06]} 69. Kf4 {[%clk 0:00:04]}  Re2 {[%clk 0:00:06]} 70. Rg7 {[%clk 0:00:02]}  Re1 {[%clk 0:00:07]} 71. Rc3 {[%clk 0:00:02]}  g1=Q {[%clk 0:00:06]} 0-1


[Site "https://www.chess.com"]

[Event "Titled Tuesday Blitz July 20 2021"]
[White "Remizov, Yaroslav"]
[Black "Kubatko, Ivan"]
[WhiteFideId "34134015"]
[BlackFideId "24111473"]
[WhiteElo "2335"]
[BlackElo "2285"]
[Result "1-0"]
[Round "07"]
[TimeControl "180+1"]
[Date "2021.07.21"]
[WhiteClock "0:02:17"]
[BlackClock "0:02:04"]

1. Nf3 {[%clk 0:02:59]}  d5 {[%clk 0:02:59]} 2. c4 {[%clk 0:02:59]}  e6 {[%clk 0:03:00]} 3. b3 {[%clk 0:02:58]}  c5 {[%clk 0:02:59]} 4. Bb2 {[%clk 0:02:54]}  Nc6 {[%clk 0:02:59]} 5. cxd5 {[%clk 0:02:50]}  exd5 {[%clk 0:02:59]} 6. e3 {[%clk 0:02:50]}  Nf6 {[%clk 0:02:50]} 7. Bb5 {[%clk 0:02:49]}  Bd7 {[%clk 0:02:38]} 8. O-O {[%clk 0:02:46]}  Bd6 {[%clk 0:02:29]} 9. d4 {[%clk 0:02:45]}  cxd4 {[%clk 0:02:26]} 10. Nxd4 {[%clk 0:02:42]}  O-O {[%clk 0:02:24]} 11. Nc3 {[%clk 0:02:30]}  Bxh2+ {[%clk 0:02:10]} 12. Kxh2 {[%clk 0:02:28]}  Ng4+ {[%clk 0:02:06]} 13. Kg1 {[%clk 0:02:28]}  Nxd4 {[%clk 0:02:04]} 14. Bxd7 {[%clk 0:02:17]} 1-0


[Site "https://www.chess.com"]

[Event "Titled Tuesday Blitz July 20 2021"]
[White "Sarkar, Justin"]
[Black "Najdin, Danil"]
[WhiteFideId "2010011"]
[BlackFideId "4172426"]
[WhiteElo "2072"]
[BlackElo "2193"]
[Result "0-1"]
[Round "07"]
[TimeControl "180+1"]
[Date "2021.07.21"]
[WhiteClock "0:00:01"]
[BlackClock "0:00:49"]

1. d4 {[%clk 0:02:53]}  Nf6 {[%clk 0:02:59]} 2. a3 {[%clk 0:02:53]}  g6 {[%clk 0:02:56]} 3. Nf3 {[%clk 0:02:38]}  Bg7 {[%clk 0:02:56]} 4. e3 {[%clk 0:02:38]}  O-O {[%clk 0:02:55]} 5. c4 {[%clk 0:02:37]}  b6 {[%clk 0:02:55]} 6. Nc3 {[%clk 0:02:34]}  Bb7 {[%clk 0:02:52]} 7. Bd3 {[%clk 0:02:24]}  c5 {[%clk 0:02:48]} 8. d5 {[%clk 0:02:16]}  e6 {[%clk 0:02:40]} 9. e4 {[%clk 0:02:14]}  exd5 {[%clk 0:02:38]} 10. cxd5 {[%clk 0:02:11]}  a6 {[%clk 0:02:20]} 11. O-O {[%clk 0:02:01]}  b5 {[%clk 0:02:18]} 12. d6 {[%clk 0:01:27]}  b4 {[%clk 0:02:03]} 13. axb4 {[%clk 0:01:25]}  cxb4 {[%clk 0:02:03]} 14. Qb3 {[%clk 0:01:09]}  Nc6 {[%clk 0:01:50]} 15. e5 {[%clk 0:01:00]}  bxc3 {[%clk 0:01:45]} 16. exf6 {[%clk 0:00:16]}  Bxf6 {[%clk 0:01:44]} 17. bxc3 {[%clk 0:00:08]}  Rb8 {[%clk 0:01:33]} 18. Bh6 {[%clk 0:00:06]}  Ne5 {[%clk 0:00:54]} 19. Nxe5 {[%clk 0:00:03]}  Bxg2 {[%clk 0:00:54]} 20. Qc4 {[%clk 0:00:02]}  Bxf1 {[%clk 0:00:52]} 21. Bxf8 {[%clk 0:00:01]}  Bxe5 {[%clk 0:00:49]} 0-1


[Site "https://www.chess.com"]

[Event "Titled Tuesday Blitz July 20 2021"]
[White "Seo, Jung Min"]
[Black "Arkell, Keith C"]
[WhiteFideId "1734687"]
[BlackFideId "400270"]
[WhiteElo "2486"]
[BlackElo "2398"]
[Result "1-0"]
[Round "07"]
[TimeControl "180+1"]
[Date "2021.07.21"]
[WhiteClock "0:00:42"]
[BlackClock "0:01:02"]

1. e4 {[%clk 0:03:00]}  c6 {[%clk 0:02:59]} 2. d4 {[%clk 0:03:00]}  d5 {[%clk 0:02:59]} 3. e5 {[%clk 0:03:01]}  c5 {[%clk 0:02:59]} 4. dxc5 {[%clk 0:03:00]}  Nc6 {[%clk 0:02:58]} 5. a3 {[%clk 0:02:58]}  a5 {[%clk 0:02:57]} 6. Bb5 {[%clk 0:02:52]}  e6 {[%clk 0:02:58]} 7. Be3 {[%clk 0:02:50]}  Bd7 {[%clk 0:02:58]} 8. Bxc6 {[%clk 0:02:48]}  Bxc6 {[%clk 0:02:59]} 9. Nf3 {[%clk 0:02:43]}  Ne7 {[%clk 0:02:58]} 10. Nd4 {[%clk 0:02:41]}  a4 {[%clk 0:02:55]} 11. b4 {[%clk 0:02:34]}  axb3 {[%clk 0:02:55]} 12. cxb3 {[%clk 0:02:34]}  Ng6 {[%clk 0:02:55]} 13. f4 {[%clk 0:02:25]}  Qh4+ {[%clk 0:02:42]} 14. g3 {[%clk 0:02:25]}  Qh3 {[%clk 0:02:43]} 15. b4 {[%clk 0:02:21]}  Qg2 {[%clk 0:02:41]} 16. Rg1 {[%clk 0:02:13]}  Qxh2 {[%clk 0:02:40]} 17. Nd2 {[%clk 0:02:11]}  Be7 {[%clk 0:02:35]} 18. Qe2 {[%clk 0:02:09]}  Qxe2+ {[%clk 0:02:34]} 19. Kxe2 {[%clk 0:02:09]}  h5 {[%clk 0:02:32]} 20. Kd3 {[%clk 0:02:05]}  Ba4 {[%clk 0:02:31]} 21. N2f3 {[%clk 0:02:03]}  Kd7 {[%clk 0:02:30]} 22. f5 {[%clk 0:02:02]}  exf5 {[%clk 0:02:29]} 23. Nxf5 {[%clk 0:02:02]}  Rh7 {[%clk 0:02:29]} 24. Nxe7 {[%clk 0:02:00]}  Nxe7 {[%clk 0:02:29]} 25. Ng5 {[%clk 0:01:59]}  Rhh8 {[%clk 0:02:28]} 26. Nxf7 {[%clk 0:01:59]}  Rhf8 {[%clk 0:02:28]} 27. Ng5 {[%clk 0:01:56]}  Ng6 {[%clk 0:02:27]} 28. e6+ {[%clk 0:01:55]}  Ke7 {[%clk 0:02:26]} 29. Kd4 {[%clk 0:01:51]}  Rf5 {[%clk 0:02:22]} 30. Raf1 {[%clk 0:01:50]}  Rxf1 {[%clk 0:02:14]} 31. Rxf1 {[%clk 0:01:49]}  Be8 {[%clk 0:02:14]} 32. Bc1 {[%clk 0:01:47]}  h4 {[%clk 0:02:10]} 33. g4 {[%clk 0:01:36]}  Nf8 {[%clk 0:01:50]} 34. Re1 {[%clk 0:01:28]}  Bg6 {[%clk 0:01:47]} 35. Kxd5 {[%clk 0:01:02]}  Rd8+ {[%clk 0:01:46]} 36. Kc4 {[%clk 0:01:02]}  Bd3+ {[%clk 0:01:45]} 37. Kc3 {[%clk 0:01:01]}  Bb1 {[%clk 0:01:28]} 38. Bf4 {[%clk 0:01:00]}  Rd3+ {[%clk 0:01:08]} 39. Kb2 {[%clk 0:00:59]}  Rd4 {[%clk 0:01:05]} 40. Bd6+ {[%clk 0:00:59]}  Ke8 {[%clk 0:01:06]} 41. Kxb1 {[%clk 0:00:58]}  Rxg4 {[%clk 0:01:06]} 42. e7 {[%clk 0:00:50]}  Nd7 {[%clk 0:01:05]} 43. Rf1 {[%clk 0:00:47]}  Nf6 {[%clk 0:01:04]} 44. Ne6 {[%clk 0:00:45]}  h3 {[%clk 0:01:02]} 45. Nxg7+ {[%clk 0:00:43]}  Rxg7 {[%clk 0:01:02]} 46. Rxf6 {[%clk 0:00:42]} 1-0


[Site "https://www.chess.com"]